Cogmind - Beta 13 @@@ ROGUE MODE // 2024.04.01 @ 16:35:33 Player: pickelover66 Result: Destroyed by as-21122 with Assembled Blade Performance ------------- Evolutions (1) 500 Regions Visited (4) 800 Robots Destroyed (54) 270 Value Destroyed (1468) 1468 Prototype IDs (11) 220 Alien Tech Used (0) 0 Bonus (0) 0 TOTAL SCORE: 3258 Bonus ------- None Cogmind --------- Core Integrity 0/400 Matter 300/300 Energy 100/100 System Corruption 6% Temperature Cool (0) Movement Core (200) Ox3 Location -9/Exiles Parts ------- > --- POWER (1) -------- (None) > --- PROPULSION (3) --- (None) > --- UTILITY (3) ------ Medium Storage Unit Improved Targeting Computer > --- WEAPON (2) ------- (None) > --- INVENTORY (10) --- Heavy Ion Engine Fission Core Improved Targeting Computer Weapon Shielding Light Armor Plating Heavy EM Pulse Gun Light EM Pulse Cannon Advanced Beam Cannon Improved Assault Rifle EMP Trap Peak State ------------ > --- POWER ------------ Heavy Ion Engine > --- PROPULSION ------- Aluminum Leg Aluminum Leg Aluminum Leg > --- UTILITY ---------- Improved Heat Sink Medium Storage Unit Targeting Computer > --- WEAPON ----------- Advanced Beam Cannon Improved Assault Rifle > --- INVENTORY -------- Ion Engine Ion Engine Targeting Computer Beam Rifle Beam Rifle Light EM Pulse Cannon Assault Rifle Heavy Assault Rifle [Rating: 18] Favorites ----------- Power Ion Engine Engine Ion Engine Propulsion Aluminum Leg Leg Aluminum Leg Utility Small Storage Unit Device Improved Heat Sink Storage Small Storage Unit Processor Targeting Computer Weapon Beam Rifle Energy Gun Beam Rifle Energy Cannon Beam Cannon Ballistic Gun Heavy Assault Rifle Launcher Grenade Launcher Special Melee Weapon Datajack Build | -11 -10 -9 -9 -9 ------- Run | Yrd Mat Mat Min Exi Slots Evolved 2 | . . 2 . . Power . | . . . . . Propulsion 1 | . . 1 . . Utility 1 | . . 1 . . Weapon . | . . . . . Parts Attached 62 | 7 30 20 5 . Power 6 | 1 2 2 1 . Engine 6 | 1 2 2 1 . Core . | . . . . . Reactor . | . . . . . Propulsion 15 | 2 7 4 2 . Treads . | . . . . . Leg 15 | 2 7 4 2 . Wheel . | . . . . . Hover . | . . . . . Flight . | . . . . . Utility 10 | 1 3 5 1 . Device 4 | . 1 2 1 . Storage 3 | 1 . 2 . . Processor 3 | . 2 1 . . Hackware . | . . . . . Protection . | . . . . . Artifact . | . . . . . Weapon 31 | 3 18 9 1 . Energy Gun 14 | 2 8 3 1 . Energy Cannon 4 | . 1 3 . . Ballistic Gun 8 | 1 4 3 . . Ballistic Cannon . | . . . . . Launcher 3 | . 3 . . . Special Weapon . | . . . . . Impact Weapon . | . . . . . Slashing Weapon . | . . . . . Piercing Weapon . | . . . . . Special Melee Weapon 2 | . 2 . . . Unidentified Prototypes 3 | . . 3 . . Corrupted Parts 1 | . . . 1 . System Corruption 6 | . . . 6 . Parts Lost 17 | . 4 5 1 7 Power 1 | . . . . 1 Propulsion 8 | . 2 2 1 3 Utility 2 | . . 1 . 1 Weapon 6 | . 2 2 . 2 Highest Loss Streak 7 | . 2 4 1 7 To Critical Strikes 2 | . . . . 2 Average Slot Usage (%) 95 | . 92 97 99 85 Engine 12 | . 14 11 11 8 Leg 29 | . 28 31 32 28 Device 7 | . 2 10 11 8 Storage 12 | . 14 11 11 11 Processor 8 | . 5 11 11 11 Energy Gun 15 | . 14 15 21 17 Energy Cannon 2 | . . 4 . . Ballistic Gun 2 | . 4 1 . . Launcher 2 | . 5 . . . Special Melee Weapon 1 | . 2 . . . Naked Turns . | . . . . . Heaviest Build 26 | 14 17 26 25 25 Greatest Support 30 | 20 26 30 30 30 Greatest Overweight (x) 4 | 1 1 4 1 3 Average Overweight (x) . | . . . . . Largest Inventory Capacity 20 | 8 8 20 10 10 Average Capacity 8 | 7 8 9 10 10 Most Carried 10 | 2 8 10 10 10 Average Carried 6 | 1 4 7 9 9 Final Capacity 10 | 8 8 10 10 10 Final Carried 10 | 2 7 10 10 10 Class Distribution -------------------- 53% | Scavenger-Mutant 46% | Mutant Dominant Class ---------------- Mutant | -10/Materials Scavenger-Mutant | -9/Materials Scavenger-Mutant | -9/Mines Scavenger-Mutant | -9/Exiles Resources | -11 -10 -9 -9 -9 ----------- Run | Yrd Mat Mat Min Exi Matter Collected 944 | 241 261 385 57 . Remotely . | . . . . . Salvage Created 1887 | . 363 1173 351 . Parts 118 | . 21 79 18 . Haulers Intercepted 4 | . . 4 . . Recyclers Shooed 2 | . . 1 1 . Parts Field Recycled . | . . . . . Retrieved Matter . | . . . . . Parts Self-Destructed . | . . . . . Prevented . | . . . . . Kills | -11 -10 -9 -9 -9 ------- Run | Yrd Mat Mat Min Exi Combat Hostiles Destroyed 43 | . 12 25 6 . Guns 28 | . 9 13 6 . Cannons 8 | . . 8 . . AOE 7 | . 3 4 . . Classes Destroyed 9 | . 3 5 1 . Worker 2 | . . 2 . . Hauler 4 | . . 4 . . Recycler 1 | . . . 1 . Operator 2 | . 1 1 . . Watcher 2 | . . 2 . . Swarmer 9 | . 3 6 . . Grunt 31 | . 9 16 6 . Brawler 1 | . . 1 . . Sentry 2 | . . 2 . . Best Kill Streak 9 | . 3 9 3 . Combat Bots Only 9 | . 3 9 3 . Max Kills in Single Turn 4 | . 2 4 2 . Gunslinging 1 | . . . 1 . Exploded 4 | . 1 4 . . Melee . | . . . . . Uniques/NPCs Destroyed . | . . . . . Combat | -11 -10 -9 -9 -9 -------- Run | Yrd Mat Mat Min Exi Hostile Shots Fired 243 | . 46 126 40 31 Missed 76 | . 12 47 6 11 Damage Taken 2358 | . 548 904 449 457 Core 445 | . 44 167 96 138 Absorbed by Shields . | . . . . . Core Remaining (%) 91 | 100 82 . . . Volleys Fired 113 | . 35 61 17 . Largest 2 | . 2 2 2 . Hottest 124 | . 90 124 101 . Shots Fired 220 | . 63 121 35 1 Gun 179 | . 57 86 35 1 Cannon 32 | . . 32 . . Launcher 9 | . 6 3 . . Special . | . . . . . Kinetic 33 | . 11 22 . . Thermal 109 | . 26 66 17 . Explosive 9 | . 6 3 . . Electromagnetic 69 | . 20 30 18 1 Robot Hit Streak 39 | . 9 12 39 3 Robot Miss Streak 3 | . 3 3 1 1 Penetration Max . | . . . . . Secondary Targets 2 | . . . 2 . Max Gunslinging Chain 1 | . . . 1 . Shots Hit Robots 168 | . 53 84 30 1 Core Hits 93 | . 23 53 17 . Critical Kills 1 | . . 1 . . Critical Parts Destroyed . | . . . . . Critical Strikes 6 | . 2 4 . . Burn 5 | . 2 3 . . Meltdown 1 | . . 1 . . Melee Attacks 11 | . 11 . . . Impact . | . . . . . Slashing . | . . . . . Piercing . | . . . . . Sneak Attacks 6 | . 6 . . . Combat Hostiles . | . . . . . Follow-up Attacks . | . . . . . Damage Inflicted 2962 | . 893 1554 515 . Guns 1888 | . 521 884 483 . Cannons 402 | . . 402 . . Explosions 567 | . 355 212 . . Melee . | . . . . . Ramming 105 | . 17 56 32 . Kinetic 319 | . 130 189 . . Thermal 1106 | . 218 705 183 . Explosive 567 | . 355 212 . . Electromagnetic 865 | . 173 392 300 . Impact . | . . . . . Slashing . | . . . . . Piercing . | . . . . . Highest Corruption 6 | . . . 6 6 Average Corruption 6 | . . . 6 6 Corruption Purged . | . . . . . Corruption Blocked . | . . . . . Effects 11 | . . . 8 3 Message Errors 3 | . . . 3 . Matter Fused 3 | . . . 3 . Heat Flow Errors 1 | . . . . 1 Data Loss (major) 1 | . . . 1 . Misfires 2 | . . . 1 1 Alerts 1 | . . . . 1 Overload Shots . | . . . . . Overflow Damage 15 | . . 15 . . Projectiles 8 | . . 8 . . Explosions 7 | . . 7 . . Melee . | . . . . . Knockbacks . | . . . . . Impact . | . . . . . Kinetic . | . . . . . Secondary . | . . . . . Self-Inflicted Damage 24 | . . 24 . . Shots 1 | . . 1 . . Rammed . | . . . . . Targets Rammed 22 | . 3 14 5 . Kicked 22 | . 3 14 5 . Crushed . | . . . . . Highest Temperature 206 | . 150 186 81 206 Average Temperature 42 | . 44 42 30 104 Received Heat Transfer 849 | . 216 387 246 . Siege Activations . | . . . . . Robots Corrupted . | . . . . . Combat Hostiles . | . . . . . Parts Fried 2 | . 1 . 1 . Impact Corruptions . | . . . . . Robots Melted 1 | . . 1 . . Combat Hostiles . | . . . . . Parts Melted 5 | . 1 3 1 . Heat Transferred 3013 | . 719 1850 444 . Parts Sabotaged . | . . . . . Parts Stolen . | . . . . . Parts Stripped . | . . . . . Power Chain Reactions . | . . . . . Alert | -11 -10 -9 -9 -9 ------- Run | Yrd Mat Mat Min Exi Peak Influence 402 | . 231 402 311 . Initial 141 | . . 66 141 . Average 195 | . 99 268 259 . Maximum Alert Level 2 | . 1 2 1 . Low Security (%) 41 | 100 88 9 3 . Level 1 57 | . 11 88 96 . Level 2 1 | . . 2 . . Level 3 . | . . . . . Level 4 . | . . . . . Level 5 . | . . . . . High Security . | . . . . . Max Security . | . . . . . Squads Dispatched 7 | . 3 4 . . Investigation 4 | . 1 3 . . Extermination . | . . . . . Reinforcement 3 | . 2 1 . . Assault . | . . . . . Garrison . | . . . . . Intercept . | . . . . . Searches Triggered . | . . . . . Construction Impeded . | . . . . . Haulers Reinforced . | . . . . . Active Scanning Responses . | . . . . . Cargo Convoy Interrupts . | . . . . . Stealth | -11 -10 -9 -9 -9 --------- Run | Yrd Mat Mat Min Exi Distress Signals 5 | . 3 2 . . Communications Jammed . | . . . . . Distress Signals . | . . . . . Times Spotted 75 | . 27 33 7 8 Peak Tracking Total 11 | . 4 11 3 9 Tactical Retreats 5 | . 4 1 . . Traps | -11 -10 -9 -9 -9 ------- Run | Yrd Mat Mat Min Exi Traps Triggered 5 | . 4 1 . . Indirectly . | . . . . . Trap Hack Attempts . | . . . . . Triggered . | . . . . . Disarmed . | . . . . . Reprogrammed . | . . . . . Reused 1 | . . . 1 . Traps Extracted . | . . . . . Installed 1 | . . . 1 . Triggered 1 | . . . 1 . Most Traps Carried 2 | . . . 2 2 Machines | -11 -10 -9 -9 -9 ---------- Run | Yrd Mat Mat Min Exi Machines Disabled 4 | . 3 1 . . Max in Single Turn 1 | . 1 1 . . Machines Repaired . | . . . . . Machines Dismantled . | . . . . . Machines Sabotaged . | . . . . . Overloaded Fab Kills . | . . . . . Hacking | -11 -10 -9 -9 -9 --------- Run | Yrd Mat Mat Min Exi Machines Accessed 11 | . 3 8 . . Terminals 8 | . 2 6 . . Fabricators . | . . . . . Repair Stations . | . . . . . Recycling Units 3 | . 1 2 . . Scanalyzers . | . . . . . Garrison Access . | . . . . . Total Hacks 31 | . 10 21 . . Successful 22 | . 7 15 . . Failed 9 | . 3 6 . . Catastrophic 1 | . 1 . . . Database Lockouts . | . . . . . Manual . | . . . . . Terminals 24 | . 7 17 . . Fabricators . | . . . . . Repair Stations . | . . . . . Recycling Units 7 | . 3 4 . . Scanalyzers . | . . . . . Garrison Access . | . . . . . Terminal Hacks 18 | . 6 12 . . Robot Analysis 1 | . . 1 . . Prototype ID Bank 4 | . . 4 . . Emergency Access Points 1 | . . 1 . . Scanalyzer Index 1 | . . 1 . . Alert Level 3 | . 1 2 . . Dispatch Records 2 | . 1 1 . . Maintenance Status 1 | . . 1 . . Security Status 1 | . . 1 . . Investigation Status 1 | . 1 . . . Recall Investigation 1 | . 1 . . . Hauler Manifests 1 | . 1 . . . Registered Components 1 | . 1 . . . Fabricator Hacks . | . . . . . Repair Station Hacks . | . . . . . Recycling Unit Hacks 4 | . 1 3 . . Report Inventory 3 | . 1 2 . . Retrieve Components 1 | . . 1 . . Scanalyzer . | . . . . . Garrison Access Hacks . | . . . . . Unauthorized Hacks . | . . . . . Terminals . | . . . . . Fabricators . | . . . . . Repair Stations . | . . . . . Recycling Units . | . . . . . Scanalyzers . | . . . . . Garrison Access . | . . . . . Data Cores Recovered . | . . . . . Used . | . . . . . Hacking Detections 9 | . 2 7 . . Full Trace Events 3 | . 1 2 . . Feedback Events . | . . . . . Feedback Blocked . | . . . . . Robot Schematics Acquired . | . . . . . Robots Built . | . . . . . Authchips . | . . . . . Time . | . . . . . Total Robot Build Rating . | . . . . . Part Schematics Acquired . | . . . . . Parts Built . | . . . . . Authchips . | . . . . . Time . | . . . . . Total Part Build Rating . | . . . . . Parts Repaired . | . . . . . Time . | . . . . . Parts Recycled . | . . . . . Recycled Matter . | . . . . . Retrieved Matter . | . . . . . Retrieved Components 3 | . . 3 . . Parts Scanalyzed . | . . . . . Part Schematics Acquired . | . . . . . Parts Damaged . | . . . . . Bothacking | -11 -10 -9 -9 -9 ------------ Run | Yrd Mat Mat Min Exi Used RIF Installer . | . . . . . Robots Hacked 4 | . 4 . . . Non-combat 4 | . 4 . . . Combat . | . . . . . Robot Hacks Applied 6 | . 6 . . . parse_system 2 | . 2 . . . no_distress 3 | . 3 . . . check_alert 1 | . 1 . . . Relay Couplers Released . | . . . . . Fabnet Peak Effective % . | . . . . . Robots Rewired . | . . . . . Allies Hacked . | . . . . . Hacks Repelled . | . . . . . Allies | -11 -10 -9 -9 -9 -------- Run | Yrd Mat Mat Min Exi Total Allies . | . . . . . Largest Group . | . . . . . Highest-Rated Group . | . . . . . Highest-Rated Ally . | . . . . . Total Orders . | . . . . . Ally Attacks . | . . . . . Total Damage . | . . . . . Kills . | . . . . . Allies Corrupted . | . . . . . Allies Melted . | . . . . . Intel | -11 -10 -9 -9 -9 ------- Run | Yrd Mat Mat Min Exi Robot Analysis Total 1 | . . 1 . . Derelict Logs Recovered 1 | . . . 1 . Drone Launches . | . . . . . Drone Recoveries . | . . . . . Exploration | -11 -10 -9 -9 -9 ------------- Run | Yrd Mat Mat Min Exi Turns Passed 3369 | 56 1303 1524 404 82 Spaces Moved 2066 | 39 766 918 277 66 Core 9 | 6 . 1 . 2 Treads . | . . . . . Legs 2057 | 33 766 917 277 64 Wheels . | . . . . . Hover . | . . . . . Flight . | . . . . . Fastest Speed 50 | 50 120 120 120 120 Average Speed 120 | 114 120 120 120 122 Slowest Speed 250 | 120 190 250 190 200 Overloaded Moves . | . . . . . Propulsion Burnouts . | . . . . . Robots Hopped . | . . . . . Cave-ins Triggered . | . . . . . Exploration Rate (%) 42 | 3 83 63 49 13 Regions Visited 4 Branch Regions 2 Pre-discovered Areas . | . . . . . Known Exits Taken . | . . . . . Unknown Exits Taken 4 | 1 1 1 1 . Scrap Searched . | . . . . . Spaces Dug . | . . . . . Terrain Destroyed 47 | . 22 25 . . Melee . | . . . . . Projectile . | . . . . . AOE 47 | . 22 25 . . Terrain Rammed . | . . . . . Walls Destroyed . | . . . . . Machines Disabled . | . . . . . Actions | -11 -10 -9 -9 -9 --------- Run | Yrd Mat Mat Min Exi Total 2711 | 47 1072 1211 313 68 Wait 384 | . 207 174 3 . Move 2062 | 38 765 917 276 66 Hop . | . . . . . Pick Up 35 | 2 15 14 3 1 Fast Attach 19 | 6 6 4 3 . Attach 12 | . 8 3 1 . Detach 1 | . 1 . . . Swap 31 | 1 16 13 1 . Drop 20 | . 5 11 3 1 Fire 113 | . 35 61 17 . Melee 11 | . 11 . . . Ram . | . . . . . Kick 22 | . 3 14 5 . Crush . | . . . . . Escape Stasis . | . . . . . Rewire . | . . . . . Trap 1 | . . . 1 . Miscellaneous . | . . . . . Route ------- -11/Scrapyard -10/Materials (discovered 3 exits: *Mat x2 / [*Min]) -9/Materials (discovered 4 exits: [*Mat x2] / [*Min] / [*Sto]) -9/Mines (discovered 2 exits: [*Mat] / [*Exi]) -9/Exiles (discovered 1 exit: [*Min]) History --------- Turn | Location | Event 21 | -11/Scrapyard | Discovered new exit (range 16) 57 | -11/Scrapyard | Entered Materials 309 | -10/Materials | Build established: Mutant 833 | -10/Materials | Discovered new exit (range 15) 1183 | -10/Materials | Discovered new exit (range 16) 1335 | -10/Materials | Discovered new exit (range 16) 1360 | -10/Materials | Entered another Materials area 1360 | -9/Materials | Evolved 2 slots: Propulsion x1, Utility x1 1568 | -9/Materials | Lost 4 parts (2n1u1w) 1572 | -9/Materials | Destroyed 9 combat bots 1582 | -9/Materials | Discovered new exit (range 8) 1717 | -9/Materials | Discovered new exit (range 6) 1864 | -9/Materials | Build established: Scavenger-Mutant 2653 | -9/Materials | Discovered new exit (range 3) 2833 | -9/Materials | Discovered new exit (range 16) 2884 | -9/Materials | Entered Mines 2891 | -9/Mines | Core integrity fell below 50% 2922 | -9/Mines | Discovered new exit (range 10) 3004 | -9/Mines | Found a hidden stash of uninstalled traps 3284 | -9/Mines | Deemed a non-threat by the Exiles lab entrance 3284 | -9/Mines | Discovered new exit (range 5) 3288 | -9/Mines | Entered Exiles 3305 | -9/Exiles | Discovered new exit (range 15) 3334 | -9/Exiles | Met 8R-AWN 3347 | -9/Exiles | Attacked by the Exiles 3367 | -9/Exiles | Core integrity fell below 20% 3370 | -9/Exiles | Destroyed by as-21122 with Assembled Blade Last Messages --------------- Penetrated by HV Slug. HV Slug penetrates Wall. Penetrated by HV Slug. Critical hit (Destroy). Imp. Heat Sink destroyed. HV Slug penetrates Wall. Beam Rifle destroyed. Aluminum Leg destroyed. Rigged Rnf. Deuterium Engine explodes. Aluminum Leg destroyed. HV Slug penetrates as-30316. HV Slug penetrates as-97023. as-97023 suffers critical hit (Destroy). as-97023 destroyed. HV Slug penetrates as-30316. as-30316 suffers critical hit (Destroy). as-30316 destroyed. HV Slug penetrates Wall. Penetrated by HV Slug. HV Slug penetrates Wall. Map ----- +----------------------------------------------------+ | ?????????????????????????????????????????????????? | | ?????????????????????????????????????????????????? | | ?????????????????????????????????????????????????? | | ?????????????????????????????????????????????????? | | ?????????????????????????????????????????????????? | | ?????????????????????????????????????????????????? | | ?????????????????????????????????????????????????? | | ?????????????????????????????????????????????????? | | ?????????????????????????????????????????????????? | | ?????????????????????????????????????????????????? | | ?????????????????????????????????###?????????????? | | ????????????????????????????????# #?????????????? | | ??????????????????????????????## #?????????????? | | ??????????????????????????????# < #?????????????? | | ??????????????????????????????# #?????????????? | | ??????????????????????????????# ??????????????? | | ?????????????????????????????## #??????????????? | | ????????????????????????????## ##?????????????? | | ????????????????????????????# #?????????????? | | ????????#####???????????????# #?????????????? | | ???????##" #??????????????## #?????????????? | | ???????#" #?????????????## # #?????????????? | | ??????## ##???????####?# #???????????????? | | ????### ###????## ### ##???????????????? | | ???## ######;;;; #????????????????? | | ???#" #"""";;aa@ ##????????????????? | | ???# a aa ##????????????????? | | #; g%% #????????????????? | | #### & ##???????????????? | | ""#?#" "" #### ###?????????????? | | # ""##?#######??#### * ###???????????? | | #####???????????????##### ##??????????? | | #????????????????????????### #??????????? | | #???????????????????????????### #??????????? | | ??????????????????????????????### #??????????? | | ???????????????????????????????#" ##?????????? | | ???????????????????????????????#### ###???????? | | ??????????????????????????????????# ##??????? | | ??????????????????????????????????## ###????? | | ???????????????????????????????????### #????? | | ?????????????????????????????????????# ##????? | | ?????????????????????????????????????## ##?????? | | ??????????????????????????????????????#####??????? | | ?????????????????????????????????????????????????? | | ?????????????????????????????????????????????????? | | ?????????????????????????????????????????????????? | | ?????????????????????????????????????????????????? | | ?????????????????????????????????????????????????? | | ?????????????????????????????????????????????????? | | ?????????????????????????????????????????????????? | +----------------------------------------------------+ Best States ------------- Heat Dissipation 42 Energy Generation 14 Energy Capacity 280 Matter Stores 300 Matter Capacity 300 Sight Range 16 Terrain Scan Density 10 Evasion (%) 55 Targeting Accuracy 6 Salvage Targeting 1 Item Schematics ----------------- None Robot Schematics ------------------ None Fabricated ------------ Nothing Alien Tech Used ----------------- None Achievements -------------- It's Just You Party Time Challenges ------------ None Game ------ Seed SpliceTitaniumBroadsword Manual? 0 Play Time 00:51:31 Cumulative 7.4 hours Start 2024.04.01 @ 15:43:29 End 2024.04.01 @ 16:35:33 Sessions 1 Manual Loads 0 Difficulty Rogue Special Mode None Game No. 5 Rogue 5 Adventurer 0 Explorer 0 Win Type - Total 0 Types 0/0/0/0/0/0/0/0/0 Lore% 2 Gallery% 10 Achievement% 10 Wizard Run 0 Options --------- Layout 1 ASCII 0 Keyboard 0 Movement Numpad Keybinds 0 Fullscreen 1 Font 24/Smallcaps Map View 50x35 Zoom Use 0% Tactical HUD 0 Map Filters NONE Filters NONE Steam 1 RUN: d146f064-2e22-452f-b668-79de57469f90